fUSD/lending_fUSD_20250207
["ID","MTS","AMOUNT","RATE_DAILY","PERIOD"]
[352090012,1738943444244,-179.1,0.0001644,2]
[352090014,1738943444258,-417.91959187,0.0001644,2]
[352090017,1738943444274,-417.91959187,0.0001644,2]
[352090019,1738943444284,-417.91959187,0.0001644,2]
[352090021,1738943444296,-417.91959187,0.0001644,2]
[352090023,1738943444308,-417.91959187,0.0001644,2]
[352090025,1738943444323,-417.91959187,0.0001644,2]
[352090027,1738943444334,-417.91959187,0.0001644,2]
[352090030,1738943444345,-417.91959187,0.0001644,2]
[352090032,1738943444355,-417.91959187,0.0001644,2]
[352090034,1738943444366,-417.91959187,0.0001644,2]
[352090036,1738943444379,-417.91959187,0.0001644,2]
[352090039,1738943444393,-417.91959187,0.0001644,2]
[352090041,1738943444404,-417.91959187,0.0001644,2]
[352090043,1738943444415,-417.91959187,0.0001644,2]
[352090045,1738943444426,-417.91959187,0.0001644,2]
[352090047,1738943444437,-417.91959187,0.0001644,2]
[352090049,1738943444449,-417.91959187,0.0001644,2]
[352090052,1738943444460,-417.91959187,0.0001644,2]
[352090054,1738943444472,-417.91959187,0.0001644,2]
[352090056,1738943444489,-417.91,0.0001644,2]
[352090058,1738943444503,-180.48673555,0.0001644,2]
[352090061,1738943444515,-180.48673555,0.0001644,2]
[352090063,1738943444527,-180.48673555,0.0001644,2]
[352090065,1738943444538,-180.48673555,0.0001644,2]
[352090067,1738943444549,-180.48673555,0.0001644,2]
[352090070,1738943444561,-180.48673555,0.0001644,2]
[352090072,1738943444574,-180.48673555,0.0001644,2]
[352090074,1738943444586,-180.48673555,0.0001644,2]
[352090076,1738943444597,-180.48673555,0.0001644,2]
[352090078,1738943444609,-180.48673555,0.0001644,2]
[352090081,1738943444620,-180.48673555,0.0001644,2]
[352090083,1738943444632,-180.48673555,0.0001644,2]
[352090085,1738943444643,-180.48673555,0.0001644,2]
[352090087,1738943444655,-180.48673555,0.0001644,2]
[352090090,1738943444666,-180.48673555,0.0001644,2]
[352090092,1738943444678,-180.48673555,0.0001644,2]
[352090094,1738943444689,-180.48673555,0.0001644,2]
[352090096,1738943444700,-180.48673555,0.0001644,2]
[352090098,1738943444711,-180.48673555,0.0001644,2]
[352090100,1738943444722,-180.48,0.0001644,2]
[352090103,1738943444734,-421.13571628,0.0001644,2]
[352090105,1738943444745,-421.13571628,0.0001644,2]
[352090107,1738943444756,-421.13571628,0.0001644,2]
[352090109,1738943444768,-421.13571628,0.0001644,2]
[352090112,1738943444781,-421.13571628,0.0001644,2]
[352090114,1738943444792,-421.13571628,0.0001644,2]
[352090116,1738943444804,-421.13571628,0.0001644,2]
[352090118,1738943444815,-421.13571628,0.0001644,2]
[352090120,1738943444826,-421.13571628,0.0001644,2]
[352090122,1738943444837,-421.13571628,0.0001644,2]
[352090125,1738943444849,-421.13571628,0.0001644,2]
[352090127,1738943444860,-421.13571628,0.0001644,2]
[352090129,1738943444873,-421.13571628,0.0001644,2]
[352090131,1738943444884,-421.13571628,0.0001644,2]
[352090134,1738943444895,-421.13571628,0.0001644,2]
[352090136,1738943444906,-421.13571628,0.0001644,2]
[352090138,1738943444918,-421.13571628,0.0001644,2]
[352090140,1738943444929,-421.13571628,0.0001644,2]
[352090142,1738943444940,-421.13571628,0.0001644,2]
[352090144,1738943444951,-421.13,0.0001644,2]
[352090147,1738943444962,-162.32041491,0.0001644,2]
[352090149,1738943444973,-162.32041491,0.0001644,2]
[352090151,1738943444984,-162.32041491,0.0001644,2]
[352090153,1738943444995,-162.32041491,0.0001644,2]
[352090155,1738943445006,-162.32041491,0.0001644,2]
[352090158,1738943445017,-162.32041491,0.0001644,2]
[352090160,1738943445028,-162.32041491,0.0001644,2]
[352090162,1738943445039,-162.32041491,0.0001644,2]
[352090164,1738943445051,-162.32041491,0.0001644,2]
[352090166,1738943445062,-162.32041491,0.0001644,2]
[352090169,1738943445074,-162.32,0.0001644,2]
[352090171,1738943445086,-208.31119914,0.0001644,2]
[352090173,1738943445098,-208.31119914,0.0001644,2]
[352090175,1738943445109,-208.31119914,0.0001644,2]
[352090177,1738943445121,-208.31119914,0.0001644,2]
[352090180,1738943445133,-208.31119914,0.0001644,2]
[352090182,1738943445146,-208.31119914,0.0001644,2]
[352090184,1738943445157,-208.31119914,0.0001644,2]
[352090186,1738943445169,-208.31119914,0.0001644,2]
[352090189,1738943445180,-208.31119914,0.0001644,2]
[352090191,1738943445191,-208.31119914,0.0001644,2]
[352090193,1738943445202,-208.31119914,0.0001644,2]
[352090195,1738943445213,-208.31119914,0.0001644,2]
[352090197,1738943445224,-208.31119914,0.0001644,2]
[352090200,1738943445236,-208.31119914,0.0001644,2]
[352090202,1738943445248,-208.31119914,0.0001644,2]
[352090204,1738943445263,-208.31119914,0.0001644,2]
[352090206,1738943445275,-208.31119914,0.0001644,2]
[352090208,1738943445286,-208.31119914,0.0001644,2]
[352090211,1738943445300,-208.31119914,0.0001644,2]
[352090213,1738943445311,-208.31,0.0001644,2]
[352090214,1738943445320,-468.2055317,0.00016463,2]
[352090216,1738943445331,-500.0,0.00016473,2]
[352090218,1738943445340,-188.10434929,0.00016492,2]
[352090220,1738943445350,-23988.3046679,0.00016492,3]
[352090222,1738943445359,-10139604.7481453,0.00016492,9]
[352090230,1738943445461,-94959.3628238,0.00016492,9]
[352090231,1738943445480,-266.5685,0.00016492,9]
[352090277,1738943445928,-500.0,0.00016438,2]
[352090279,1738943445937,-500.0,0.00016438,2]
[352090281,1738943445948,-667.4320932,0.00016492,9]
[352090283,1738943445959,-525.84936815,0.00016492,9]
[352090285,1738943445971,-4946.70845576,0.00016492,9]
[352090287,1738943445982,-1974.25212566,0.00016492,9]
[352090289,1738943445993,-196145.73346256,0.00016492,9]
[352090330,1738943446387,-500.0,0.00016438,2]
[352090332,1738943446396,-13380.54347025,0.00016492,9]
[352090336,1738943446418,-500.0,0.00016491,2]
[352090338,1738943446427,-436.2736208,0.00016492,9]
[352090340,1738943446439,-9885.4,0.00016492,9]
[352090355,1738943446580,-500.0,0.00016491,2]
[352090357,1738943446589,-284.71443757,0.00016491,2]
[352090359,1738943446599,-500.0,0.00016491,2]
[352090360,1738943446608,-153.5332534,0.00016491,2]
[352090363,1738943446618,-500.0,0.00016491,2]
[352090365,1738943446627,-500.0,0.00016491,2]
[352090367,1738943446636,-500.0,0.00016491,2]
[352090369,1738943446646,-481.6318694,0.00016491,2]
[352090370,1738943446655,-4724.00193689,0.00016492,9]
[352090373,1738943446666,-1093.20719691,0.00016492,9]
[352090377,1738943446698,-634.1523578,0.00016491,2]
[352090379,1738943446708,-500.0,0.00016491,2]
[352090381,1738943446718,-500.0,0.00016491,2]
[352090383,1738943446727,-500.0,0.00016491,2]
[352090385,1738943446736,-119824.60693271,0.00016492,9]
[352090386,1738943446748,-3158.27562113,0.00016492,9]
[352090428,1738943447203,-438.66,0.00015778,2]
[352090430,1738943447213,-500.0,0.00016491,2]
[352090432,1738943447223,-22.31850001,0.00016491,2]
[352090434,1738943447235,-477.68149999,0.00016491,2]
[352090436,1738943447244,-500.0,0.00016491,2]
[352090438,1738943447258,-500.0,0.00016491,2]
[352090440,1738943447268,-171.74982379,0.00016491,2]
[352090442,1738943447279,-500.0,0.00016491,2]
[352090444,1738943447288,-500.0,0.00016491,2]
[352090446,1738943447299,-500.0,0.00016491,2]
[352090448,1738943447308,-500.0,0.00016491,2]
[352090450,1738943447318,-500.0,0.00016491,2]
[352090452,1738943447330,-500.0,0.00016491,2]
[352090454,1738943447342,-500.0,0.00016491,2]
[352090456,1738943447352,-500.0,0.00016491,2]
[352090458,1738943447362,-500.0,0.00016491,2]
[352090460,1738943447372,-500.0,0.00016491,2]
[352090462,1738943447382,-500.0,0.00016491,2]
[352090464,1738943447392,-500.0,0.00016491,2]
[352090466,1738943447402,-399.30120017,0.00016491,2]
[352090468,1738943447411,-17393.46780308,0.00016492,9]
[352090470,1738943447424,-7919.53467144,0.00016492,9]
[352090473,1738943447437,-445.419,0.00016492,9]
[352090475,1738943447448,-2733.36047481,0.00016492,9]
[352090477,1738943447460,-2757.45835397,0.00016492,9]
[352090479,1738943447471,-1325.95192759,0.00016492,9]
[352090481,1738943447483,-164424.11107176,0.00016492,9]
[352091194,1738944101234,500.0,0.0002,120]
[352091195,1738944142631,1888.0,0.0002,120]
[352091196,1738944150955,150.0,0.00019427,120]
[352091197,1738944210737,150.0,0.0001996,120]
[352091201,1738944450716,150.0,0.00019148,120]
[352091202,1738944558081,-1239.0375,8.256e-05,2]
[352091203,1738944558103,-150.0,8.698e-05,2]
[352091204,1738944558124,-1890.8891,8.699e-05,2]
[352091205,1738944558145,-1080.9986,8.699e-05,2]
[352091206,1738944558165,-221.9012,8.699e-05,2]
[352091207,1738944558186,-312.2819,8.699e-05,2]
[352091208,1738944558207,-4158.9446,8.699e-05,2]
[352091209,1738944558227,-945.9471,8.699e-05,2]
[352091210,1738944559247,-10000.0,8.699e-05,2]
[352091211,1738944559748,-10000.0,8.699e-05,2]
[352091212,1738944560238,-3661.3417,8.699e-05,2]
[352091213,1738944560258,-3881.1932,8.699e-05,2]
[352091214,1738944560280,-991.8561,8.836e-05,2]
[352091215,1738944560300,-1004.6704,8.836e-05,2]
[352091216,1738944560320,-460.9386,8.836e-05,2]
[352091217,1738944560589,-759.9886,8.836e-05,2]
[352091218,1738944560611,-9240.0114,8.836e-05,2]
[352091219,1738944561027,-10000.0,8.836e-05,2]
[352091220,1738944561335,-10000.0,8.836e-05,2]
[352091221,1738944561747,-7004.4774,8.836e-05,2]
[352091222,1738944561769,-2995.5226,8.836e-05,2]
[352091223,1738944562115,-1015.6244,8.836e-05,2]
[352091224,1738944562138,-8984.3756,8.836e-05,2]
[352091225,1738944562713,-1856.6597,8.836e-05,2]
[352091226,1738944562736,-525.0742,8.836e-05,2]
[352091227,1738944562758,-804.7608,8.836e-05,2]
[352091228,1738944562779,-6813.5053,8.836e-05,2]
[352091229,1738944563407,-10000.0,8.836e-05,2]
[352091230,1738944563806,-3492.8413,8.836e-05,2]
[352091231,1738944563828,-852.6665,8.836e-05,2]
[352091232,1738944563850,-5654.4922,8.836e-05,2]
[352091233,1738944564281,-10000.0,8.836e-05,2]
[352091234,1738944564586,-10000.0,8.836e-05,2]
[352091235,1738944565054,-8264.1886,8.836e-05,2]
[352091236,1738944565076,-1303.0215,8.836e-05,2]
[352091237,1738944565098,-432.7899,8.836e-05,2]
[352091238,1738944565565,-10000.0,8.836e-05,2]
[352091239,1738944565965,-4148.8585,8.836e-05,2]
[352091240,1738944565987,-5851.1415,8.836e-05,2]
[352091241,1738944566669,-9904.29415187,8.836e-05,2]
[352091242,1738944566691,-95.70584813,8.84e-05,2]
[352091243,1738944567856,-404.29415187,8.84e-05,2]
[352091244,1738944567878,-500.0,8.84e-05,2]
[352091245,1738944567900,-500.0,8.851e-05,2]
[352091246,1738944568085,-8595.70584813,8.973e-05,2]
[352091247,1738944570746,150.0,0.0001931,120]
[352091248,1738944575834,-4159.73595187,8.973e-05,2]
[352091249,1738944575856,-5000.0,8.973e-05,2]
[352091250,1738944577735,840.26404813,8.836e-05,2]
[352091251,1738944583847,-10000.0,8.836e-05,2]
[352091252,1738944584720,-10000.0,8.836e-05,2]
[352091253,1738944585657,-3171.09405187,8.836e-05,2]
[352091270,1738944632402,-272.41617942,9.081e-05,2]
[352091271,1738944632412,-500.0,9.081e-05,2]
[352091272,1738944632421,-1000.0,9.388e-05,2]
[352091273,1738944632431,-500.0,9.568e-05,2]
[352091274,1738944632440,-255.0,9.568e-05,2]
[352091275,1738944632449,-160.68,9.788e-05,2]
[352091276,1738944632458,-257.14,0.00010137,2]
[352091277,1738944632468,-1000.0,0.0001039,2]
[352091278,1738944632477,-300.0,0.00010524,2]
[352091279,1738944632487,-160.68,0.00010876,2]
[352091280,1738944632496,-250.0,0.00011558,2]
[352091281,1738944632506,-272.41617941,0.0001233,2]
[352091282,1738944632515,-684.42,0.00012911,2]
[352091283,1738944632524,-586.27,0.0001303,2]
[352091284,1738944632534,-498.74,0.00013056,2]
[352091285,1738944632543,-250.0,0.00013169,2]
[352091286,1738944632553,-200.0,0.00013261,2]
[352091287,1738944632562,-1000.0,0.00013292,2]
[352091288,1738944632572,-23900.0,0.00013693,2]
[352091289,1738944632584,-575.85,0.00013726,2]
[352091290,1738944632595,-239.45,0.00013957,2]
[352091291,1738944632605,-199.06,0.00014589,2]
[352091292,1738944632614,-498.74,0.00014688,2]
[352091293,1738944632624,-2275.5,0.00014839,2]
[352091294,1738944632634,-150.0,0.00014844,2]
[352091295,1738944632643,-150.0,0.00014844,2]
[352091296,1738944632653,-500.0,0.00014845,2]
[352091297,1738944632662,-1000.0,0.00014953,2]
[352091298,1738944632674,-438.66,0.00014959,2]
[352091299,1738944632684,-438.24,0.00014959,2]
[352091300,1738944632693,-684.42,0.00015174,2]
[352091301,1738944632702,-150.0,0.00015394,2]
[352091302,1738944632712,-5556.0,0.000154,5]
[352091303,1738944632722,-193.12,0.00015445,2]
[352091306,1738944632732,-272.41617941,0.00015678,2]
[352091307,1738944632741,-6605.247,0.00015753,2]
[352091309,1738944632750,-437.96,0.00015778,2]
[352091310,1738944632760,-623.23,0.00015836,2]
[352091311,1738944632770,-985.06,0.00015836,2]
[352091312,1738944632779,-900.0,0.000159,5]
[352091313,1738944632788,-150.0,0.00015943,2]
[352091315,1738944632797,-700.0,0.00016,9]
[352091317,1738944632806,-1800.0,0.000161,5]
[352091319,1738944632815,-254.0,0.000161,2]
[352091321,1738944632824,-500.0,0.00016164,2]
[352091322,1738944632834,-500.0,0.00016164,2]
[352091324,1738944632844,-2700.0,0.000162,5]
[352091327,1738944632853,-626.622362,0.000163,2]
[352091328,1738944632862,-3600.0,0.000163,5]
[352091331,1738944632871,-202.0,0.0001632,2]
[352091333,1738944632881,-498.74,0.0001632,2]
[352091335,1738944632890,-4000.0,0.0001633,2]
[352091336,1738944632900,-90128.74081075,0.00016338,2]
[352091339,1738944632909,-90128.74081074,0.00016345,2]
[352091341,1738944632919,-90128.74081074,0.00016352,2]
[352091343,1738944632928,-90128.74081074,0.00016359,2]
[352091345,1738944632938,-63611.51772146,0.00016366,2]
[352091347,1738944632950,-977.96027813,0.00016366,2]
[352091348,1738944632961,-25539.26281115,0.00016366,2]
[352091349,1738944632970,-2893.21975148,0.00016372,2]
[352091350,1738944632982,-10959.07597296,0.00016372,2]
[352091351,1738944633002,-6582.91197962,0.00016372,2]
[352091352,1738944633015,-9799.75192,0.00016372,2]
[352091353,1738944633062,-388.91576444,0.00016372,2]
[352091354,1738944633075,-1066.9634,0.00016372,2]
[352091355,1738944633088,-330.67,0.00016372,2]
[352091356,1738944633106,-6483.82591368,0.00016372,2]
[352091372,1738944637830,-613.75175729,0.00016372,2]
[352091373,1738944637889,-51009.65435127,0.00016372,2]
[352091374,1738944637899,-90128.74081074,0.00016379,2]
[352091375,1738944637908,-90128.74081074,0.00016386,2]
[352091376,1738944637918,-222.24653098,0.00016392,2]
[352091377,1738944637927,-500.0,0.00016392,2]
[352091378,1738944637936,-500.0,0.00016392,2]
[352091379,1738944637947,-418.45789232,0.00016392,2]
[352091380,1738944637957,-500.0,0.00016392,2]
[352091381,1738944637966,-500.0,0.00016392,2]
[352091382,1738944637975,-500.0,0.00016392,2]
[352091383,1738944637985,-500.0,0.00016392,2]
[352091384,1738944637995,-500.0,0.00016392,2]
[352091385,1738944638004,-500.0,0.00016392,2]
[352091386,1738944638013,-500.0,0.00016392,2]
[352091387,1738944638023,-500.0,0.00016392,2]
[352091388,1738944638032,-500.0,0.00016392,2]
[352091389,1738944638042,-500.0,0.00016392,2]
[352091390,1738944638051,-500.0,0.00016392,2]
[352091391,1738944638061,-500.0,0.00016392,2]
[352091393,1738944638070,-396.60523622,0.00016392,2]
[352091395,1738944638082,-500.0,0.00016392,2]
[352091396,1738944638091,-500.0,0.00016392,2]
[352091399,1738944638100,-500.0,0.00016392,2]
[352091401,1738944638110,-500.0,0.00016392,2]
[352091402,1738944638119,-500.0,0.00016392,2]
[352091404,1738944638129,-90128.74081074,0.00016393,2]
[352091406,1738944638138,-9994.14502482,0.000164,2]
[352091408,1738944638148,-4500.0,0.000164,5]
[352091411,1738944638157,-7326.24370217,0.000164,2]
[352091413,1738944638169,-82802.49710857,0.000164,2]
[352091415,1738944638178,-348.87758288,0.000164,2]
[352091417,1738944638188,-1645.84043715,0.00016428,2]
[352091419,1738944638197,-502.27862366,0.00016438,2]
[352091421,1738944638206,-500.0,0.00016438,2]
[352091423,1738944638215,-504.09136491,0.00016438,2]
[352091425,1738944638224,-500.0,0.00016438,2]
[352091426,1738944638234,-500.0,0.00016438,2]
[352091429,1738944638243,-500.0,0.00016438,2]
[352091431,1738944638252,-500.0,0.00016438,2]
[352091432,1738944638263,-500.0,0.00016438,2]
[352091434,1738944638272,-500.0,0.00016438,2]
[352091436,1738944638282,-422.06867259,0.00016438,2]
[352091438,1738944638291,-500.0,0.00016438,2]
[352091440,1738944638300,-500.0,0.00016438,2]
[352091442,1738944638310,-500.0,0.00016438,2]
[352091444,1738944638319,-500.0,0.00016438,2]
[352091446,1738944638332,-240.74162542,0.00016438,2]
[352091448,1738944638342,-512.14562174,0.00016438,2]
[352091450,1738944638352,-500.0,0.00016438,2]
[352091452,1738944638362,-500.0,0.00016438,2]
[352091454,1738944638372,-500.0,0.00016438,2]
[352091456,1738944638381,-502.00755207,0.00016438,2]
[352091458,1738944638391,-435.32708629,0.00016438,2]
[352091460,1738944638401,-500.0,0.00016438,2]
[352091462,1738944638410,-300.0,0.00016438,2]
[352091464,1738944638419,-262.09516629,0.00016438,2]
[352091466,1738944638428,-500.0,0.00016438,2]
[352091468,1738944638438,-500.0,0.00016438,2]
[352091470,1738944638447,-500.0,0.00016438,2]
[352091472,1738944638456,-500.0,0.00016438,2]
[352091474,1738944638465,-500.0,0.00016438,2]
[352091476,1738944638475,-500.0,0.00016438,2]
[352091478,1738944638484,-500.0,0.00016438,2]
[352091480,1738944638493,-500.0,0.00016438,2]
[352091482,1738944638503,-500.0,0.00016438,2]
[352091484,1738944638511,-500.0,0.00016438,2]
[352091486,1738944638520,-500.0,0.00016438,2]
[352091487,1738944638530,-500.0,0.00016438,2]
[352091488,1738944638539,-500.0,0.00016438,2]
[352091489,1738944638549,-500.0,0.00016438,2]
[352091490,1738944638558,-500.0,0.00016438,2]
[352091491,1738944638567,-500.0,0.00016438,2]
[352091492,1738944638576,-500.0,0.00016438,2]
[352091493,1738944638587,-177.26100613,0.00016438,2]
[352091494,1738944638596,-500.0,0.00016438,2]
[352091495,1738944638605,-500.0,0.00016438,2]
[352091497,1738944638614,-500.0,0.00016438,2]
[352091498,1738944638623,-500.0,0.00016438,2]
[352091500,1738944638632,-500.0,0.00016438,2]
[352091502,1738944638642,-500.0,0.00016438,2]
[352091504,1738944638651,-500.0,0.00016438,2]
[352091506,1738944638660,-500.0,0.00016438,2]
[352091508,1738944638669,-500.0,0.00016438,2]
[352091510,1738944638678,-500.0,0.00016438,2]
[352091512,1738944638691,-500.0,0.00016438,2]
[352091514,1738944638701,-500.0,0.00016438,2]
[352091516,1738944638711,-500.0,0.00016438,2]
[352091518,1738944638720,-500.0,0.00016438,2]
[352091520,1738944638729,-500.0,0.00016438,2]
[352091522,1738944638738,-500.0,0.00016438,2]
[352091524,1738944638749,-500.0,0.00016438,2]
[352091526,1738944638759,-500.0,0.00016438,2]
[352091528,1738944638770,-500.0,0.00016438,2]
[352091530,1738944638780,-500.0,0.00016438,2]
[352091532,1738944638789,-500.0,0.00016438,2]
[352091534,1738944638799,-500.0,0.00016438,2]
[352091536,1738944638808,-500.0,0.00016438,2]
[352091538,1738944638817,-500.0,0.00016438,2]
[352091540,1738944638826,-500.0,0.00016438,2]
[352091543,1738944638838,-151.57886927,0.00016438,2]
[352091545,1738944638847,-500.0,0.00016438,2]
[352091547,1738944638857,-500.0,0.00016438,2]
[352091548,1738944638866,-500.0,0.00016438,2]
[352091550,1738944638876,-500.0,0.00016438,2]
[352091552,1738944638886,-500.0,0.00016438,2]
[352091555,1738944638897,-500.0,0.00016438,2]
[352091557,1738944638906,-390.66678655,0.00016438,2]
[352091558,1738944638915,-247.17294009,0.00016438,2]
[352091560,1738944638924,-500.0,0.00016438,2]
[352091562,1738944638933,-500.0,0.00016438,2]
[352091565,1738944638944,-500.0,0.00016438,7]
[352091567,1738944638954,-500.0,0.00016438,2]
[352091568,1738944638963,-500.0,0.00016438,2]
[352091571,1738944638972,-500.0,0.00016438,2]
[352091572,1738944638982,-500.0,0.00016438,2]
[352091574,1738944638991,-373.91635664,0.00016438,2]
[352091577,1738944639007,-126.08364336,0.00016438,2]
[352091579,1738944639016,-267.60733142,0.00016438,2]
[352091584,1738944639048,-232.39266858,0.00016438,2]
[352091585,1738944639057,-209.35395042,0.00016438,2]
[352091588,1738944639068,-290.64604958,0.00016438,2]
[352091590,1738944639081,-501.01546332,0.00016438,2]
[352091592,1738944639090,-500.0,0.00016438,2]
[352091594,1738944639099,-500.0,0.00016438,2]
[352091596,1738944639108,-500.0,0.00016438,2]
[352091598,1738944639118,-500.0,0.00016438,2]
[352091600,1738944639126,-500.0,0.00016438,2]
[352091602,1738944639135,-500.0,0.00016438,2]
[352091604,1738944639145,-500.0,0.00016438,2]
[352091605,1738944639153,-500.0,0.00016438,2]
[352091607,1738944639163,-500.0,0.00016438,2]
[352091610,1738944639172,-500.0,0.00016438,2]
[352091612,1738944639182,-502.03543557,0.00016438,2]
[352091614,1738944639191,-500.0,0.00016438,2]
[352091616,1738944639200,-501.34269758,0.00016438,2]
[352091617,1738944639210,-500.0,0.00016438,2]
[352091619,1738944639219,-500.0,0.00016438,2]
[352091621,1738944639228,-500.0,0.00016438,2]
[352091623,1738944639237,-551.51018882,0.00016438,2]
[352091626,1738944639247,-500.0,0.00016438,2]
[352091627,1738944639256,-500.0,0.00016438,2]
[352091629,1738944639265,-301.85716513,0.00016438,2]
[352091732,1738944640506,-198.14283487,0.00016438,2]
[352091734,1738944640516,-500.0,0.00016438,2]
[352091735,1738944640525,-500.0,0.00016438,2]
[352091737,1738944640534,-500.0,0.00016438,2]
[352091739,1738944640544,-500.0,0.00016438,2]
[352091741,1738944640553,-500.0,0.00016438,2]
[352091743,1738944640563,-500.0,0.00016438,2]
[352091746,1738944640573,-500.0,0.00016438,2]
[352091747,1738944640585,-500.0,0.00016438,2]
[352091749,1738944640594,-500.0,0.00016438,2]
[352091751,1738944640603,-500.0,0.00016438,2]
[352091752,1738944640612,-516.49001146,0.00016438,2]
[352091753,1738944640621,-500.0,0.00016438,2]
[352091754,1738944640631,-500.0,0.00016438,2]
[352091755,1738944640640,-500.0,0.00016438,2]
[352091756,1738944640649,-500.82387521,0.00016438,2]
[352091757,1738944640658,-500.0,0.00016438,2]
[352091758,1738944640668,-500.0,0.00016438,2]
[352091759,1738944640682,-500.0,0.00016438,2]
[352091761,1738944640691,-500.0,0.00016438,2]
[352091763,1738944640700,-500.0,0.00016438,2]
[352091765,1738944640709,-500.0,0.00016438,2]
[352091766,1738944640719,-500.0,0.00016438,2]
[352091768,1738944640729,-500.0,0.00016438,2]
[352091788,1738944640908,-345.01470913,0.00016438,2]
[352091791,1738944640928,-154.98529087,0.00016438,2]
[352091793,1738944640938,-500.0,0.00016438,2]
[352091795,1738944640948,-500.0,0.00016438,2]
[352091797,1738944640957,-500.0,0.00016438,2]
[352091799,1738944640968,-500.0,0.00016438,2]
[352091801,1738944640978,-530.90839102,0.00016438,2]
[352091803,1738944640987,-500.17610939,0.00016438,2]
[352091805,1738944640996,-500.0,0.00016438,2]
[352091807,1738944641006,-500.0,0.00016438,2]
[352091809,1738944641015,-500.0,0.00016438,2]
[352091811,1738944641025,-500.0,0.00016438,2]
[352091813,1738944641034,-500.0,0.00016438,2]
[352091815,1738944641043,-227.54043826,0.00016438,2]
[352091817,1738944641052,-500.0,0.00016438,2]
[352091819,1738944641062,-500.0,0.00016438,2]
[352091821,1738944641071,-500.0,0.00016438,2]
[352091822,1738944641085,-500.0,0.00016438,2]
[352091824,1738944641095,-501.14745606,0.00016438,2]
[352091826,1738944641105,-500.0,0.00016438,2]
[352091828,1738944641114,-500.0,0.00016438,2]
[352091831,1738944641123,-500.0,0.00016438,2]
[352091833,1738944641132,-500.0,0.00016438,2]
[352091834,1738944641141,-500.0,0.00016438,2]
[352091836,1738944641150,-500.0,0.00016438,2]
[352091838,1738944641159,-500.0,0.00016438,2]
[352091840,1738944641168,-500.0,0.00016438,2]
[352091842,1738944641178,-500.0,0.00016438,2]
[352091844,1738944641188,-515.72,0.00016438,2]
[352091846,1738944641197,-500.0,0.00016438,2]
[352091848,1738944641206,-500.0,0.00016438,2]
[352091849,1738944641215,-500.0,0.00016438,2]
[352091851,1738944641225,-500.0,0.00016438,2]
[352091852,1738944641234,-500.0,0.00016438,2]
[352091854,1738944641243,-500.0,0.00016438,2]
[352091855,1738944641253,-500.0,0.00016438,2]
[352091857,1738944641262,-500.0,0.00016438,2]
[352091858,1738944641271,-500.0,0.00016438,2]
[352091859,1738944641280,-500.0,0.00016438,2]
[352091861,1738944641288,-546.66,0.00016438,2]
[352091863,1738944641297,-500.0,0.00016438,2]
[352091864,1738944641307,-500.0,0.00016438,2]
[352091866,1738944641316,-500.0,0.00016438,2]
[352091867,1738944641325,-394.88,0.00016438,2]
[352091869,1738944641338,-501.52366533,0.00016438,2]
[352091870,1738944641347,-500.0,0.00016438,2]
[352091872,1738944641356,-570.0297795,0.00016438,2]
[352091873,1738944641365,-500.0,0.00016438,2]
[352091875,1738944641376,-500.0,0.00016438,2]
[352091876,1738944641385,-500.0,0.00016438,2]
[352091878,1738944641394,-500.0,0.00016438,2]
[352091879,1738944641403,-500.0,0.00016438,2]
[352091881,1738944641412,-1136.79,0.00016438,2]
[352091882,1738944641421,-500.0,0.00016438,2]
[352091884,1738944641431,-500.0,0.00016438,2]